[Event "Early-Titled-Tuesday-Blitz-October-24-2023"]
[Site "Chess.com"]
[Date "2023.10.24"]
[Round "5"]
[White "CSB7"]
[Black "dapsay"]
[Result "1/2-1/2"]
[WhiteElo "2707"]
[BlackElo "2407"]
[TimeControl "180+1"]
[EndTime "8:56:15 PDT"]
[Termination "Game drawn - insufficient material"]

1. Nf3 {[%clk 0:03:00.9]} 1... d5 {[%clk 0:02:59.6]} 2. c4 {[%clk 0:02:59.8]}
2... c6 {[%clk 0:03:00.5]} 3. e3 {[%clk 0:02:58.1]} 3... Nf6 {[%clk 0:03:00.8]}
4. Nc3 {[%clk 0:02:57.7]} 4... e6 {[%clk 0:03:00.9]} 5. Qc2 {[%clk 0:02:54.2]}
5... a5 {[%clk 0:02:54.5]} 6. b3 {[%clk 0:02:52.8]} 6... Na6 {[%clk 0:02:54.1]}
7. a3 {[%clk 0:02:52.3]} 7... Nc5 {[%clk 0:02:53.7]} 8. Bb2 {[%clk 0:02:50.4]}
8... a4 {[%clk 0:02:53.4]} 9. b4 {[%clk 0:02:46.6]} 9... Nb3 {[%clk 0:02:53.3]}
10. Rd1 {[%clk 0:02:45.9]} 10... dxc4 {[%clk 0:02:47.3]} 11. Bxc4 {[%clk
0:02:39.9]} 11... b5 {[%clk 0:02:47.1]} 12. Bxb3 {[%clk 0:02:30.9]} 12... axb3
{[%clk 0:02:46.4]} 13. Qxb3 {[%clk 0:02:31.5]} 13... Be7 {[%clk 0:02:45.9]} 14.
d4 {[%clk 0:02:26]} 14... Qb6 {[%clk 0:02:45.3]} 15. O-O {[%clk 0:02:26.6]}
15... O-O {[%clk 0:02:45.1]} 16. Ne5 {[%clk 0:02:12.7]} 16... Bb7 {[%clk
0:02:45.5]} 17. Qc2 {[%clk 0:02:04.2]} 17... Rfc8 {[%clk 0:02:44.4]} 18. Ne2
{[%clk 0:01:56.4]} 18... Qd8 {[%clk 0:02:41.6]} 19. Nf4 {[%clk 0:01:52.4]} 19...
Nd5 {[%clk 0:02:40.5]} 20. Nfd3 {[%clk 0:01:43]} 20... Rc7 {[%clk 0:02:35.6]}
21. Nc5 {[%clk 0:01:36.9]} 21... Bc8 {[%clk 0:02:35.8]} 22. Qe2 {[%clk
0:01:31.6]} 22... Bd6 {[%clk 0:02:34.8]} 23. e4 {[%clk 0:01:26.2]} 23... Nb6
{[%clk 0:02:34.8]} 24. f4 {[%clk 0:01:17.2]} 24... Qe8 {[%clk 0:02:34.1]} 25.
Qh5 {[%clk 0:01:02.6]} 25... Qe7 {[%clk 0:02:19.7]} 26. Rd3 {[%clk 0:00:57.9]}
26... f6 {[%clk 0:02:19.1]} 27. Rh3 {[%clk 0:00:54.6]} 27... h6 {[%clk
0:02:09.8]} 28. Ng6 {[%clk 0:00:34.9]} 28... Qf7 {[%clk 0:02:09.8]} 29. Rff3
{[%clk 0:00:32.7]} 29... Bxc5 {[%clk 0:02:05.9]} 30. bxc5 {[%clk 0:00:19.2]}
30... Nc4 {[%clk 0:02:06.2]} 31. Bc1 {[%clk 0:00:19.9]} 31... f5 {[%clk
0:02:02]} 32. e5 {[%clk 0:00:11.4]} 32... Bd7 {[%clk 0:01:57.6]} 33. Rfg3 {[%clk
0:00:11.1]} 33... Be8 {[%clk 0:01:57.8]} 34. Qe2 {[%clk 0:00:06.5]} 34... Kh7
{[%clk 0:01:53.1]} 35. Nh4 {[%clk 0:00:06.5]} 35... Rd7 {[%clk 0:01:47.8]} 36.
Nf3 {[%clk 0:00:06.9]} 36... Kh8 {[%clk 0:01:34.1]} 37. Ng5 {[%clk 0:00:06.9]}
37... Qe7 {[%clk 0:01:28.5]} 38. Nf3 {[%clk 0:00:05.6]} 38... Kh7 {[%clk
0:01:22.4]} 39. Rh4 {[%clk 0:00:05.2]} 39... Rxd4 {[%clk 0:01:11.2]} 40. Rgh3
{[%clk 0:00:02.1]} 40... Rd5 {[%clk 0:01:05.7]} 41. g4 {[%clk 0:00:02.1]} 41...
fxg4 {[%clk 0:01:04.1]} 42. Ng5+ {[%clk 0:00:02.2]} 42... Kg8 {[%clk 0:01:02.9]}
43. Qxg4 {[%clk 0:00:01.9]} 43... Qxc5+ {[%clk 0:01:00.5]} 44. Kh1 {[%clk
0:00:02.4]} 44... Rd7 {[%clk 0:00:28.7]} 45. Nxe6 {[%clk 0:00:01.9]} 45... Qd5+
{[%clk 0:00:26.2]} 46. Kg1 {[%clk 0:00:02.3]} 46... Qd1+ {[%clk 0:00:26]} 47.
Qxd1 {[%clk 0:00:02.5]} 47... Rxd1+ {[%clk 0:00:26.5]} 48. Kf2 {[%clk
0:00:03.2]} 48... Rxc1 {[%clk 0:00:26.5]} 49. Rg3 {[%clk 0:00:03.8]} 49... Rc2+
{[%clk 0:00:24.9]} 50. Ke1 {[%clk 0:00:03.7]} 50... Ra7 {[%clk 0:00:23.4]} 51.
Rxh6 {[%clk 0:00:04]} 51... g6 {[%clk 0:00:17.5]} 52. Nd4 {[%clk 0:00:04]} 52...
Rb2 {[%clk 0:00:16.9]} 53. f5 {[%clk 0:00:04.2]} 53... Rxa3 {[%clk 0:00:16.7]}
54. Rxa3 {[%clk 0:00:03.8]} 54... Nxa3 {[%clk 0:00:16.8]} 55. fxg6 {[%clk
0:00:03.5]} 55... Kg7 {[%clk 0:00:17.3]} 56. Nf5+ {[%clk 0:00:03.5]} 56... Kg8
{[%clk 0:00:16.7]} 57. g7 {[%clk 0:00:02.6]} 57... Rg2 {[%clk 0:00:07.5]} 58.
Rh8+ {[%clk 0:00:03.5]} 58... Kf7 {[%clk 0:00:07.9]} 59. Rf8+ {[%clk 0:00:03.3]}
59... Ke6 {[%clk 0:00:08.4]} 60. Rxe8+ {[%clk 0:00:03.6]} 60... Kxf5 {[%clk
0:00:08.1]} 61. g8=Q {[%clk 0:00:04.1]} 61... Rxg8 {[%clk 0:00:07.9]} 62. Rxg8
{[%clk 0:00:05]} 62... b4 {[%clk 0:00:08.4]} 63. Kd2 {[%clk 0:00:04.2]} 63... c5
{[%clk 0:00:08.1]} 64. h4 {[%clk 0:00:03.7]} 64... c4 {[%clk 0:00:08.1]} 65. h5
{[%clk 0:00:02.6]} 65... c3+ {[%clk 0:00:08.4]} 66. Kc1 {[%clk 0:00:02]} 66...
b3 {[%clk 0:00:08.8]} 67. Rb8 {[%clk 0:00:02]} 67... b2+ {[%clk 0:00:06]} 68.
Rxb2 {[%clk 0:00:02.8]} 68... cxb2+ {[%clk 0:00:05.8]} 69. Kxb2 {[%clk
0:00:03.7]} 69... Nc4+ {[%clk 0:00:06.4]} 70. Kc3 {[%clk 0:00:04.6]} 70... Nxe5
{[%clk 0:00:07.2]} 71. h6 {[%clk 0:00:05.2]} 71... Kg6 {[%clk 0:00:07.4]} 72. h7
{[%clk 0:00:06.1]} 72... Kxh7 {[%clk 0:00:07.1]} 1/2-1/2

[Event "Early-Titled-Tuesday-Blitz-October-24-2023"]
[Site "Chess.com"]
[Date "2023.10.24"]
[Round "5"]
[White "ShahxaibKhan"]
[Black "BeautiFullMindChess"]
[Result "1-0"]
[WhiteElo "2412"]
[BlackElo "2256"]
[TimeControl "180+1"]
[EndTime "8:56:15 PDT"]
[Termination "ShahxaibKhan won on time"]

1. e4 {[%clk 0:03:00.9]} 1... d5 {[%clk 0:03:00]} 2. exd5 {[%clk 0:02:56.9]}
2... Qxd5 {[%clk 0:03:00.9]} 3. Nc3 {[%clk 0:02:56.5]} 3... Qa5 {[%clk
0:03:00.7]} 4. Bc4 {[%clk 0:02:55.1]} 4... Nf6 {[%clk 0:03:00.5]} 5. d3 {[%clk
0:02:54.3]} 5... Nc6 {[%clk 0:02:54.3]} 6. Bb5 {[%clk 0:02:54.1]} 6... Bd7
{[%clk 0:02:53.4]} 7. Nf3 {[%clk 0:02:53.7]} 7... O-O-O {[%clk 0:02:49.5]} 8.
O-O {[%clk 0:02:53.8]} 8... h6 {[%clk 0:02:40.5]} 9. Qe2 {[%clk 0:02:52]} 9...
a6 {[%clk 0:02:35.9]} 10. Bxc6 {[%clk 0:02:49.7]} 10... Bxc6 {[%clk 0:02:34.2]}
11. Ne5 {[%clk 0:02:50]} 11... Be8 {[%clk 0:02:28.7]} 12. Bd2 {[%clk 0:02:43]}
12... e6 {[%clk 0:01:57.8]} 13. a4 {[%clk 0:02:42.2]} 13... Bb4 {[%clk
0:01:56.3]} 14. Kh1 {[%clk 0:02:19]} 14... Nd7 {[%clk 0:01:37.1]} 15. Nc4 {[%clk
0:02:17.5]} 15... Qf5 {[%clk 0:01:29.8]} 16. a5 {[%clk 0:02:07.6]} 16... Nf6
{[%clk 0:01:22.4]} 17. h3 {[%clk 0:02:03.5]} 17... Kb8 {[%clk 0:01:16.2]} 18.
Ne5 {[%clk 0:01:46.4]} 18... Bd6 {[%clk 0:01:14.1]} 19. f4 {[%clk 0:01:44.3]}
19... Qh5 {[%clk 0:01:02.3]} 20. Rf3 {[%clk 0:01:20.1]} 20... Nd7 {[%clk
0:00:49.5]} 21. d4 {[%clk 0:01:10.7]} 21... Nf6 {[%clk 0:00:33]} 22. g4 {[%clk
0:01:03.1]} 22... Nxg4 {[%clk 0:00:33.1]} 23. Nxg4 {[%clk 0:01:00.6]} 23... Bc6
{[%clk 0:00:32.3]} 24. Kg2 {[%clk 0:00:33]} 24... g5 {[%clk 0:00:16.6]} 25. Ne4
{[%clk 0:00:32.3]} 25... Bxe4 {[%clk 0:00:12.5]} 26. Qxe4 {[%clk 0:00:31.6]}
26... f5 {[%clk 0:00:13.4]} 27. Qxe6 {[%clk 0:00:26.9]} 27... fxg4 {[%clk
0:00:13.8]} 28. Qxg4 {[%clk 0:00:27.6]} 28... Qg6 {[%clk 0:00:13.4]} 29. f5
{[%clk 0:00:26.3]} 29... Qf6 {[%clk 0:00:14.1]} 30. c3 {[%clk 0:00:25.5]} 30...
h5 {[%clk 0:00:13.7]} 31. Qe4 {[%clk 0:00:24.4]} 31... g4 {[%clk 0:00:13.3]} 32.
Rff1 {[%clk 0:00:18]} 32... gxh3+ {[%clk 0:00:12.3]} 33. Kxh3 {[%clk 0:00:17]}
33... Rde8 {[%clk 0:00:12.5]} 34. Qf3 {[%clk 0:00:15.3]} 34... Rhg8 {[%clk
0:00:12]} 35. Rae1 {[%clk 0:00:15]} 35... Rxe1 {[%clk 0:00:10.4]} 36. Bxe1
{[%clk 0:00:15.1]} 36... Rg4 {[%clk 0:00:10]} 37. Qe2 {[%clk 0:00:11]} 37... Qg5
{[%clk 0:00:07.1]} 38. Qe8+ {[%clk 0:00:10.5]} 38... Ka7 {[%clk 0:00:06.7]} 39.
Qe2 {[%clk 0:00:10.5]} 39... h4 {[%clk 0:00:04.7]} 40. Qf3 {[%clk 0:00:09.8]}
40... Rg3+ {[%clk 0:00:04.5]} 41. Bxg3 {[%clk 0:00:09.6]} 41... hxg3 {[%clk
0:00:05.1]} 42. Kg2 {[%clk 0:00:09.6]} 42... Qd2+ {[%clk 0:00:04.9]} 43. Kh3
{[%clk 0:00:09.2]} 43... Qh6+ {[%clk 0:00:05.4]} 44. Kg4 {[%clk 0:00:08.9]}
44... Qg7+ {[%clk 0:00:04.9]} 45. Kh3 {[%clk 0:00:08.9]} 45... Qh6+ {[%clk
0:00:05.1]} 46. Kg4 {[%clk 0:00:08.9]} 46... Qg7+ {[%clk 0:00:05.2]} 47. Kh4
{[%clk 0:00:08]} 47... g2 {[%clk 0:00:06.1]} 48. Qf2 {[%clk 0:00:08.2]} 48...
gxf1=Q {[%clk 0:00:05.4]} 49. Qxf1 {[%clk 0:00:08.8]} 49... Qg3+ {[%clk
0:00:05.2]} 50. Kh5 {[%clk 0:00:09.7]} 50... Qh2+ {[%clk 0:00:04.8]} 51. Kg6
{[%clk 0:00:09.8]} 51... Qg3+ {[%clk 0:00:04.2]} 52. Kf7 {[%clk 0:00:09.9]}
52... Qg5 {[%clk 0:00:03.7]} 53. f6 {[%clk 0:00:10]} 53... Qd5+ {[%clk
0:00:03.2]} 54. Kg7 {[%clk 0:00:09.2]} 54... Qh5 {[%clk 0:00:04]} 55. Kg8 {[%clk
0:00:08.2]} 55... Qg5+ {[%clk 0:00:04.7]} 56. Kf7 {[%clk 0:00:07.9]} 56... c6
{[%clk 0:00:03.5]} 57. Qf3 {[%clk 0:00:07.3]} 57... Qh6 {[%clk 0:00:02.9]} 58.
Ke6 {[%clk 0:00:06.5]} 58... Bf8 {[%clk 0:00:02.1]} 59. Qf5 {[%clk 0:00:06.1]}
1-0

[Event "Early-Titled-Tuesday-Blitz-October-24-2023"]
[Site "Chess.com"]
[Date "2023.10.24"]
[Round "5"]
[White "vishwa_vijeta"]
[Black "Josgar05"]
[Result "1-0"]
[WhiteElo "2533"]
[BlackElo "2360"]
[TimeControl "180+1"]
[EndTime "8:56:27 PDT"]
[Termination "vishwa_vijeta won by checkmate"]

1. e4 {[%clk 0:02:57.1]} 1... e6 {[%clk 0:02:42.2]} 2. d4 {[%clk 0:02:54.6]}
2... d5 {[%clk 0:02:43.1]} 3. Nd2 {[%clk 0:02:54.5]} 3... dxe4 {[%clk
0:02:42.8]} 4. Nxe4 {[%clk 0:02:54.6]} 4... Nd7 {[%clk 0:02:43.5]} 5. Nf3 {[%clk
0:02:53.8]} 5... Ngf6 {[%clk 0:02:44]} 6. Nxf6+ {[%clk 0:02:53.8]} 6... Nxf6
{[%clk 0:02:44]} 7. c3 {[%clk 0:02:52.3]} 7... Be7 {[%clk 0:02:44.5]} 8. Bd3
{[%clk 0:02:51.6]} 8... O-O {[%clk 0:02:45.1]} 9. O-O {[%clk 0:02:51.6]} 9... c5
{[%clk 0:02:45.7]} 10. Qc2 {[%clk 0:02:51.3]} 10... cxd4 {[%clk 0:02:45.7]} 11.
Nxd4 {[%clk 0:02:51.3]} 11... h6 {[%clk 0:02:46.3]} 12. Rd1 {[%clk 0:02:50.8]}
12... Bd7 {[%clk 0:02:37.5]} 13. Bf4 {[%clk 0:02:49.3]} 13... a6 {[%clk
0:02:36.9]} 14. h3 {[%clk 0:02:43]} 14... Rc8 {[%clk 0:02:33.8]} 15. Nf3 {[%clk
0:02:41.1]} 15... Qb6 {[%clk 0:02:23.2]} 16. Ne5 {[%clk 0:02:36.1]} 16... Bb5
{[%clk 0:02:21.5]} 17. c4 {[%clk 0:02:14.7]} 17... Bc6 {[%clk 0:01:53]} 18. Qe2
{[%clk 0:02:06.5]} 18... Bc5 {[%clk 0:01:39.4]} 19. Rac1 {[%clk 0:01:46.7]}
19... Rfd8 {[%clk 0:01:34.4]} 20. a3 {[%clk 0:01:45.7]} 20... a5 {[%clk
0:01:34.6]} 21. Bc2 {[%clk 0:01:18.3]} 21... a4 {[%clk 0:01:28.5]} 22. Nd3
{[%clk 0:01:08.2]} 22... Be7 {[%clk 0:01:13]} 23. Be3 {[%clk 0:01:01.7]} 23...
Qc7 {[%clk 0:01:10.8]} 24. Nb4 {[%clk 0:00:54.2]} 24... Be4 {[%clk 0:01:05]} 25.
Bxa4 {[%clk 0:00:52.1]} 25... Qa5 {[%clk 0:00:37.6]} 26. Bb5 {[%clk 0:00:37.5]}
26... Bxb4 {[%clk 0:00:32.5]} 27. axb4 {[%clk 0:00:38.4]} 27... Qxb4 {[%clk
0:00:33]} 28. Bd4 {[%clk 0:00:37.1]} 28... Bg6 {[%clk 0:00:25.5]} 29. Qf3 {[%clk
0:00:32.7]} 29... Qe7 {[%clk 0:00:24.5]} 30. Bxf6 {[%clk 0:00:31.3]} 30... gxf6
{[%clk 0:00:23.6]} 31. Qe3 {[%clk 0:00:30.2]} 31... Kh7 {[%clk 0:00:22.6]} 32.
Qb6 {[%clk 0:00:27]} 32... Rxd1+ {[%clk 0:00:21.1]} 33. Rxd1 {[%clk 0:00:26.9]}
33... Be4 {[%clk 0:00:20.6]} 34. Rd7 {[%clk 0:00:24.6]} 34... Qb4 {[%clk
0:00:19.6]} 35. Rxf7+ {[%clk 0:00:21.7]} 35... Kg6 {[%clk 0:00:19.9]} 36. Qxe6
{[%clk 0:00:21.9]} 36... Qe1+ {[%clk 0:00:17.6]} 37. Kh2 {[%clk 0:00:22.1]}
37... Qxf2 {[%clk 0:00:15.5]} 38. Qxe4+ {[%clk 0:00:11.4]} 38... Kxf7 {[%clk
0:00:15.7]} 39. Qxb7+ {[%clk 0:00:11.9]} 39... Kg6 {[%clk 0:00:14.2]} 40. Qxc8
{[%clk 0:00:12.1]} 40... Qf4+ {[%clk 0:00:14.4]} 41. Kg1 {[%clk 0:00:12.7]}
41... Qe3+ {[%clk 0:00:14]} 42. Kf1 {[%clk 0:00:12.9]} 42... Qc1+ {[%clk
0:00:14]} 43. Ke2 {[%clk 0:00:13]} 43... Qxb2+ {[%clk 0:00:14.7]} 44. Ke3 {[%clk
0:00:13.1]} 44... Qc3+ {[%clk 0:00:15.1]} 45. Ke4 {[%clk 0:00:12.6]} 45... Qe5+
{[%clk 0:00:15.2]} 46. Kf3 {[%clk 0:00:12.6]} 46... Qc3+ {[%clk 0:00:13.8]} 47.
Kf2 {[%clk 0:00:12.7]} 47... Qd2+ {[%clk 0:00:13.8]} 48. Kf1 {[%clk 0:00:13]}
48... Qd1+ {[%clk 0:00:13.9]} 49. Kf2 {[%clk 0:00:13.6]} 49... Qd2+ {[%clk
0:00:14.5]} 50. Kf3 {[%clk 0:00:10.6]} 50... Qd3+ {[%clk 0:00:14.8]} 51. Kf4
{[%clk 0:00:11.1]} 51... Qd4+ {[%clk 0:00:13.4]} 52. Kg3 {[%clk 0:00:11.5]}
52... Qe5+ {[%clk 0:00:13.7]} 53. Kf3 {[%clk 0:00:11.9]} 53... Qc3+ {[%clk
0:00:13.2]} 54. Ke4 {[%clk 0:00:10.8]} 54... Qe5+ {[%clk 0:00:12.9]} 55. Kd3
{[%clk 0:00:11.5]} 55... Qg3+ {[%clk 0:00:12.7]} 56. Kd4 {[%clk 0:00:10.3]}
56... Qe5+ {[%clk 0:00:12.6]} 57. Kd3 {[%clk 0:00:10.7]} 57... Qg3+ {[%clk
0:00:12.9]} 58. Kc2 {[%clk 0:00:10.4]} 58... Qxg2+ {[%clk 0:00:13.1]} 59. Kb3
{[%clk 0:00:11.1]} 59... Qf3+ {[%clk 0:00:13.2]} 60. Kb4 {[%clk 0:00:11.4]}
60... h5 {[%clk 0:00:10.9]} 61. Qg8+ {[%clk 0:00:10.4]} 61... Kf5 {[%clk
0:00:10.7]} 62. Qd5+ {[%clk 0:00:09.9]} 62... Qxd5 {[%clk 0:00:11.3]} 63. cxd5
{[%clk 0:00:10.8]} 63... Ke5 {[%clk 0:00:12.2]} 64. Kc5 {[%clk 0:00:11.4]} 64...
f5 {[%clk 0:00:12.4]} 65. d6 {[%clk 0:00:12]} 65... f4 {[%clk 0:00:13]} 66. d7
{[%clk 0:00:12.6]} 66... f3 {[%clk 0:00:13.9]} 67. d8=Q {[%clk 0:00:13.5]} 67...
f2 {[%clk 0:00:14.8]} 68. Qf8 {[%clk 0:00:13.4]} 68... f1=Q {[%clk 0:00:15.3]}
69. Bxf1 {[%clk 0:00:13.4]} 69... Ke4 {[%clk 0:00:16.2]} 70. Kc4 {[%clk
0:00:13.7]} 70... Ke5 {[%clk 0:00:17.1]} 71. Kd3 {[%clk 0:00:13.5]} 71... Ke6
{[%clk 0:00:18]} 72. Kd4 {[%clk 0:00:14.2]} 72... h4 {[%clk 0:00:18.9]} 73. Bc4+
{[%clk 0:00:13.2]} 73... Kd7 {[%clk 0:00:19.8]} 74. Kc5 {[%clk 0:00:12.8]} 74...
Kc7 {[%clk 0:00:19.4]} 75. Qe7+ {[%clk 0:00:13.2]} 75... Kb8 {[%clk 0:00:20.3]}
76. Kb6 {[%clk 0:00:13.7]} 76... Ka8 {[%clk 0:00:20.5]} 77. Qd8# {[%clk
0:00:13.6]} 1-0

[Event "Early-Titled-Tuesday-Blitz-October-24-2023"]
[Site "Chess.com"]
[Date "2023.10.24"]
[Round "5"]
[White "BardArtem"]
[Black "Ind1anStar"]
[Result "1-0"]
[WhiteElo "2691"]
[BlackElo "2489"]
[TimeControl "180+1"]
[EndTime "8:56:32 PDT"]
[Termination "BardArtem won by resignation"]

1. e4 {[%clk 0:02:57.4]} 1... g6 {[%clk 0:02:55.6]} 2. d4 {[%clk 0:02:57.1]}
2... Bg7 {[%clk 0:02:55.9]} 3. Nc3 {[%clk 0:02:57.1]} 3... d6 {[%clk 0:02:56.3]}
4. h3 {[%clk 0:02:53.5]} 4... a6 {[%clk 0:02:56.2]} 5. a4 {[%clk 0:02:52.9]}
5... Nf6 {[%clk 0:02:54.7]} 6. Nf3 {[%clk 0:02:53]} 6... O-O {[%clk 0:02:51.4]}
7. Be2 {[%clk 0:02:50.6]} 7... Nbd7 {[%clk 0:02:51.6]} 8. e5 {[%clk 0:02:47]}
8... Ne8 {[%clk 0:02:51.7]} 9. Bf4 {[%clk 0:02:42.8]} 9... c5 {[%clk 0:02:40.2]}
10. dxc5 {[%clk 0:02:37.1]} 10... Nxc5 {[%clk 0:02:38.6]} 11. O-O {[%clk
0:02:34.7]} 11... Bf5 {[%clk 0:02:27.8]} 12. Re1 {[%clk 0:02:31.7]} 12... dxe5
{[%clk 0:02:20.3]} 13. Bxe5 {[%clk 0:02:30.2]} 13... Qxd1 {[%clk 0:02:12.9]} 14.
Raxd1 {[%clk 0:02:28.2]} 14... Bxc2 {[%clk 0:02:12.9]} 15. Rc1 {[%clk
0:02:27.6]} 15... Bb3 {[%clk 0:02:06.5]} 16. Bxg7 {[%clk 0:02:19.4]} 16... Nxg7
{[%clk 0:02:07.4]} 17. Nd4 {[%clk 0:01:59.9]} 17... Rfd8 {[%clk 0:02:06.9]} 18.
Nxb3 {[%clk 0:01:55.4]} 18... Nxb3 {[%clk 0:02:07.8]} 19. Rcd1 {[%clk
0:01:55.8]} 19... Nd4 {[%clk 0:01:57.5]} 20. Bd3 {[%clk 0:01:53.5]} 20... Nge6
{[%clk 0:01:50.8]} 21. Be4 {[%clk 0:01:50.7]} 21... Rab8 {[%clk 0:01:45.3]} 22.
Bd5 {[%clk 0:01:49.1]} 22... b5 {[%clk 0:01:37.6]} 23. axb5 {[%clk 0:01:44.5]}
23... axb5 {[%clk 0:01:36]} 24. Re4 {[%clk 0:01:43.7]} 24... b4 {[%clk
0:01:27.8]} 25. Bxe6 {[%clk 0:01:36.5]} 25... bxc3 {[%clk 0:01:24.5]} 26. Rexd4
{[%clk 0:01:20.2]} 26... Rxd4 {[%clk 0:01:23]} 27. Rxd4 {[%clk 0:01:21.1]} 27...
cxb2 {[%clk 0:01:22.2]} 28. Ba2 {[%clk 0:01:20]} 28... b1=Q+ {[%clk 0:01:22]}
29. Bxb1 {[%clk 0:01:20.5]} 29... Rxb1+ {[%clk 0:01:22.2]} 30. Kh2 {[%clk
0:01:21.3]} 30... Kg7 {[%clk 0:01:22.5]} 31. Rd7 {[%clk 0:01:20.5]} 31... e6
{[%clk 0:01:22]} 32. Ra7 {[%clk 0:01:20]} 32... Rb2 {[%clk 0:01:20.1]} 33. Kg3
{[%clk 0:01:20.2]} 33... h5 {[%clk 0:01:20.4]} 34. h4 {[%clk 0:01:20.5]} 34...
Kf6 {[%clk 0:01:17.2]} 35. Ra4 {[%clk 0:01:19.6]} 35... e5 {[%clk 0:01:15.6]}
36. Ra7 {[%clk 0:01:19.1]} 36... Rb3+ {[%clk 0:01:12.3]} 37. Kh2 {[%clk
0:01:18.2]} 37... Ke6 {[%clk 0:01:09.3]} 38. Ra6+ {[%clk 0:01:16.8]} 38... Kf5
{[%clk 0:01:09.5]} 39. Ra7 {[%clk 0:01:17.2]} 39... f6 {[%clk 0:01:09.9]} 40.
Rg7 {[%clk 0:01:15.2]} 40... e4 {[%clk 0:01:05.3]} 41. Rg8 {[%clk 0:01:11.1]}
41... Rb2 {[%clk 0:00:58.2]} 42. Kg3 {[%clk 0:01:10]} 42... Rb3+ {[%clk
0:00:57.7]} 43. Kh2 {[%clk 0:01:08.8]} 43... e3 {[%clk 0:00:52.9]} 44. fxe3
{[%clk 0:01:07.4]} 44... Rxe3 {[%clk 0:00:53.8]} 45. Rg7 {[%clk 0:01:04.7]}
45... Re4 {[%clk 0:00:40.5]} 46. Kh3 {[%clk 0:01:02.6]} 46... Re3+ {[%clk
0:00:35.7]} 47. Kh2 {[%clk 0:01:02.5]} 47... g5 {[%clk 0:00:35.4]} 48. hxg5
{[%clk 0:01:02.1]} 48... fxg5 {[%clk 0:00:36.3]} 49. Ra7 {[%clk 0:01:00]} 49...
Re4 {[%clk 0:00:35.2]} 50. Ra5+ {[%clk 0:00:58.3]} 50... Kg4 {[%clk 0:00:35.3]}
51. Ra3 {[%clk 0:00:58.2]} 51... h4 {[%clk 0:00:34.8]} 52. Ra8 {[%clk
0:00:54.6]} 52... Rc4 {[%clk 0:00:34.8]} 53. Ra2 {[%clk 0:00:53.6]} 53... Rc5
{[%clk 0:00:30.6]} 54. Ra4+ {[%clk 0:00:53.4]} 54... Kh5 {[%clk 0:00:30.9]} 55.
Ra8 {[%clk 0:00:52.6]} 55... Rd5 {[%clk 0:00:29.5]} 56. Ra3 {[%clk 0:00:49.3]}
56... g4 {[%clk 0:00:28.7]} 57. Ra8 {[%clk 0:00:48.3]} 57... Rd1 {[%clk
0:00:25.2]} 58. Ra5+ {[%clk 0:00:46.7]} 58... Kg6 {[%clk 0:00:24.4]} 59. Ra6+
{[%clk 0:00:46.9]} 59... Kf5 {[%clk 0:00:24.1]} 60. Ra5+ {[%clk 0:00:46.1]}
60... Kf4 {[%clk 0:00:19.4]} 61. Ra4+ {[%clk 0:00:45.6]} 61... Kf5 {[%clk
0:00:20.1]} 62. Ra5+ {[%clk 0:00:41.5]} 62... Ke4 {[%clk 0:00:20.5]} 63. Rh5
{[%clk 0:00:17]} 63... g3+ {[%clk 0:00:17.1]} 64. Kh3 {[%clk 0:00:17.4]} 64...
Rh1+ {[%clk 0:00:16.5]} 65. Kg4 {[%clk 0:00:17.8]} 65... Rh2 {[%clk 0:00:11]}
66. Rxh4 {[%clk 0:00:17.9]} 66... Rxh4+ {[%clk 0:00:10.3]} 67. Kxh4 {[%clk
0:00:18.8]} 67... Kf4 {[%clk 0:00:10.7]} 68. Kh3 {[%clk 0:00:19.3]} 68... Kf5
{[%clk 0:00:11.3]} 69. Kh4 {[%clk 0:00:19.1]} 69... Kf4 {[%clk 0:00:11.4]} 70.
Kh5 {[%clk 0:00:17.1]} 70... Ke3 {[%clk 0:00:11]} 71. Kg4 {[%clk 0:00:17.5]}
71... Ke4 {[%clk 0:00:09.8]} 72. Kxg3 {[%clk 0:00:17.7]} 72... Kf5 {[%clk
0:00:10.5]} 73. Kh4 {[%clk 0:00:18.4]} 73... Kg6 {[%clk 0:00:08]} 74. Kg4 {[%clk
0:00:18.6]} 1-0